[Event "Rapid Tournament (RAP)"]
[Site "Biel, Switzerland"]
[Date "2026.07.12"]
[Round "4.13"]
[White "Aryan, Goyal"]
[Black "Rohrer, Christophe"]
[Result "0-1"]
[TimeControl "15 + 5"]
[WhiteTitle "-"]
[BlackTitle "-"]
[WhiteFideId "366108825"]
[BlackFideId "1326546"]
[WhiteElo "1869"]
[BlackElo "2202"]

1. e4 {[%clk 00:15:09]} e5 {[%clk 00:15:08]} 2. Nf3 {[%clk 00:15:12]} {[%emt
00:00:01]} Nc6 {[%clk 00:15:11]} {[%emt 00:00:02]} 3. Bb5 {[%clk 00:15:16]}
{[%emt 00:00:03]} a6 {[%clk 00:15:14]} 4. Ba4 {[%clk 00:15:20]} d6 {[%clk
00:15:17]} {[%emt 00:00:02]} 5. c3 {[%clk 00:15:09]} {[%emt 00:00:16]} Bg4
{[%clk 00:15:13]} {[%emt 00:00:09]} 6. O-O {[%clk 00:15:05]} {[%emt 00:00:09]}
Qf6 {[%clk 00:15:04]} {[%emt 00:00:14]} 7. d3 {[%clk 00:14:52]} {[%emt
00:00:18]} Nge7 {[%emt 00:00:40]} 8. Nbd2 {[%clk 00:14:53]} h5 {[%clk
00:14:16]} {[%emt 00:00:22]} 9. Re1 {[%clk 00:14:35]} {[%emt 00:00:23]} g5
{[%clk 00:14:13]} {[%emt 00:00:07]} 10. Nf1 {[%clk 00:14:20]} {[%emt 00:00:20]}
Bxf3 {[%clk 00:14:07]} {[%emt 00:00:12]} 11. Qxf3 {[%clk 00:14:21]} {[%emt
00:00:03]} Qxf3 {[%clk 00:14:10]} {[%emt 00:00:03]} 12. gxf3 {[%clk 00:14:22]}
{[%emt 00:00:03]} f6 {[%clk 00:12:41]} {[%emt 00:01:35]} 13. Bb3 {[%clk
00:13:58]} {[%emt 00:00:29]} Ng6 {[%clk 00:12:27]} {[%emt 00:00:18]} 14. Be3
{[%clk 00:13:25]} {[%emt 00:00:38]} Nh4 {[%clk 00:12:20]} {[%emt 00:00:13]} 15.
Nd2 {[%clk 00:13:29]} Ke7 {[%clk 00:11:48]} {[%emt 00:00:37]} 16. d4 {[%clk
00:12:16]} {[%emt 00:01:18]} Bh6 {[%clk 00:11:44]} {[%emt 00:00:09]} 17. Bd1
{[%clk 00:11:55]} {[%emt 00:00:25]} Rag8 {[%clk 00:11:09]} {[%emt 00:00:40]} 18.
Kh1 {[%clk 00:11:05]} {[%emt 00:00:56]} Nd8 {[%clk 00:10:41]} {[%emt 00:00:33]}
19. Nf1 {[%clk 00:10:49]} {[%emt 00:00:20]} Ne6 {[%clk 00:08:27]} {[%emt
00:02:19]} 20. Ng3 {[%clk 00:10:48]} {[%emt 00:00:06]} g4 {[%clk 00:08:04]}
{[%emt 00:00:28]} 21. Nf5+ {[%clk 00:10:20]} {[%emt 00:00:34]} Nxf5 {[%clk
00:08:04]} {[%emt 00:00:05]} 22. exf5 {[%clk 00:10:24]} Nf4 {[%clk 00:07:07]}
{[%emt 00:01:02]} 23. Bxf4 {[%clk 00:10:14]} {[%emt 00:00:15]} Bxf4 {[%clk
00:07:10]} {[%emt 00:00:02]} 24. Rg1 {[%clk 00:10:14]} {[%emt 00:00:04]} Rg5
{[%clk 00:06:53]} {[%emt 00:00:22]} 25. Rg2 {[%clk 00:09:30]} {[%emt 00:00:49]}
Rxf5 {[%clk 00:05:35]} {[%emt 00:01:24]} 26. fxg4 {[%clk 00:09:32]} {[%emt
00:00:04]} hxg4 {[%clk 00:05:38]} {[%emt 00:00:01]} 27. Bxg4 {[%clk 00:09:31]}
{[%emt 00:00:05]} Rg5 {[%clk 00:05:42]} {[%emt 00:00:02]} 28. Bf3 {[%clk
00:07:56]} {[%emt 00:01:39]} Rxg2 {[%clk 00:05:41]} {[%emt 00:00:07]} 29. Kxg2
{[%clk 00:08:00]} Rxh2+ {[%clk 00:05:42]} {[%emt 00:00:04]} 30. Kf1 {[%clk
00:08:05]} c6 {[%clk 00:05:28]} {[%emt 00:00:19]} 31. Ke2 {[%clk 00:07:42]}
{[%emt 00:00:28]} Bg3 {[%clk 00:04:26]} {[%emt 00:01:07]} 32. Rf1 {[%clk
00:07:46]} {[%emt 00:00:01]} f5 {[%clk 00:04:23]} {[%emt 00:00:08]} 33. Ke1
{[%clk 00:07:23]} {[%emt 00:00:28]} Bh4 {[%clk 00:04:21]} {[%emt 00:00:06]} 34.
dxe5 {[%clk 00:07:22]} {[%emt 00:00:07]} dxe5 {[%clk 00:04:25]} {[%emt
00:00:02]} 35. Ke2 {[%clk 00:06:41]} {[%emt 00:00:45]} e4 {[%clk 00:04:22]}
{[%emt 00:00:09]} 36. Bh1 {[%clk 00:06:36]} {[%emt 00:00:08]} Ke6 {[%clk
00:04:21]} {[%emt 00:00:06]} 37. Ke3 {[%clk 00:06:34]} {[%emt 00:00:08]} Bxf2+
{[%clk 00:04:04]} {[%emt 00:00:22]} 38. Rxf2 {[%clk 00:06:38]} {[%emt
00:00:02]} Rxh1 {[%clk 00:04:07]} 39. Kf4 {[%clk 00:06:34]} {[%emt 00:00:08]}
Rg1 {[%clk 00:04:04]} {[%emt 00:00:08]} 40. Rh2 {[%clk 00:06:35]} {[%emt
00:00:05]} Rg4+ {[%clk 00:04:08]} 41. Ke3 {[%emt 00:00:02]} Ke5 {[%clk
00:03:41]} {[%emt 00:00:31]} 42. Rh7 {[%clk 00:06:41]} {[%emt 00:00:03]} f4+
{[%clk 00:03:43]} {[%emt 00:00:04]} 43. Ke2 {[%clk 00:06:45]} {[%emt 00:00:01]}
Rg2+ {[%clk 00:03:44]} {[%emt 00:00:04]} 44. Kf1 {[%clk 00:06:49]} Rxb2 {[%clk
00:03:43]} {[%emt 00:00:07]} 45. Re7+ {[%clk 00:06:52]} {[%emt 00:00:01]} Kf5
{[%clk 00:03:45]} {[%emt 00:00:03]} 46. Rf7+ {[%clk 00:06:55]} {[%emt
00:00:02]} Kg4 {[%clk 00:03:49]} {[%emt 00:00:01]} 0-1

[Event "Rapid Tournament (RAP)"]
[Site "Biel, Switzerland"]
[Date "2026.07.12"]
[Round "4.14"]
[White "Maier, Christian"]
[Black "Filimonov, Arsenii"]
[Result "1-0"]
[TimeControl "15 + 5"]
[WhiteTitle "-"]
[BlackTitle "-"]
[WhiteFideId "4601955"]
[BlackFideId "34171584"]
[WhiteElo "2314"]
[BlackElo "1843"]

1. e4 {[%clk 00:15:08]} c5 {[%clk 00:15:09]} {[%emt 00:00:02]} 2. Nf3 {[%clk
00:15:11]} {[%emt 00:00:01]} e6 {[%clk 00:15:12]} {[%emt 00:00:04]} 3. Nc3
{[%clk 00:15:09]} {[%emt 00:00:07]} a6 {[%clk 00:15:12]} {[%emt 00:00:04]} 4.
g3 {[%clk 00:15:12]} b5 {[%clk 00:15:12]} {[%emt 00:00:06]} 5. Bg2 {[%clk
00:15:15]} {[%emt 00:00:02]} Bb7 {[%clk 00:15:16]} 6. d4 {[%clk 00:15:11]}
{[%emt 00:00:09]} cxd4 {[%clk 00:15:19]} {[%emt 00:00:03]} 7. Nxd4 {[%clk
00:15:13]} {[%emt 00:00:03]} d6 {[%clk 00:15:19]} {[%emt 00:00:04]} 8. O-O
{[%clk 00:15:15]} {[%emt 00:00:04]} Nd7 {[%clk 00:15:20]} {[%emt 00:00:04]} 9.
Re1 {[%clk 00:14:57]} {[%emt 00:00:23]} Ngf6 {[%clk 00:15:12]} {[%emt
00:00:12]} 10. h3 {[%clk 00:14:45]} {[%emt 00:00:17]} Qc7 {[%clk 00:15:09]}
{[%emt 00:00:07]} 11. a3 {[%clk 00:14:03]} {[%emt 00:00:49]} Be7 {[%clk
00:15:07]} {[%emt 00:00:07]} 12. Nde2 {[%clk 00:12:52]} {[%emt 00:01:16]} O-O
{[%clk 00:15:02]} {[%emt 00:00:09]} 13. g4 {[%clk 00:12:56]} {[%emt 00:00:02]}
Rfd8 {[%clk 00:13:42]} {[%emt 00:01:25]} 14. Ng3 {[%clk 00:12:59]} {[%emt
00:00:02]} Nb6 {[%clk 00:12:59]} {[%emt 00:00:48]} 15. g5 {[%clk 00:13:01]}
{[%emt 00:00:02]} Ne8 {[%clk 00:13:03]} {[%emt 00:00:02]} 16. h4 {[%clk
00:13:04]} {[%emt 00:00:03]} d5 {[%clk 00:12:46]} {[%emt 00:00:22]} 17. e5
{[%clk 00:10:33]} {[%emt 00:02:35]} Rac8 {[%clk 00:12:01]} {[%emt 00:00:49]} 18.
Qg4 {[%clk 00:10:28]} {[%emt 00:00:11]} Qc4 {[%clk 00:10:43]} {[%emt 00:01:23]}
19. Bf4 {[%clk 00:10:24]} {[%emt 00:00:10]} Rc7 {[%clk 00:10:01]} {[%emt
00:00:46]} 20. h5 {[%clk 00:09:53]} {[%emt 00:00:36]} d4 {[%clk 00:08:42]}
{[%emt 00:01:24]} 21. Nce4 {[%clk 00:09:46]} {[%emt 00:00:12]} Bxe4 {[%clk
00:08:34]} {[%emt 00:00:13]} 22. Bxe4 {[%clk 00:09:43]} {[%emt 00:00:08]} Nd5
{[%clk 00:07:18]} {[%emt 00:01:21]} 23. Bd2 {[%clk 00:09:01]} {[%emt 00:00:46]}
Kh8 {[%clk 00:06:58]} {[%emt 00:00:26]} 24. Bd3 {[%clk 00:07:47]} {[%emt
00:01:18]} Qc6 {[%clk 00:06:51]} {[%emt 00:00:13]} 25. Ne4 {[%clk 00:07:32]}
{[%emt 00:00:20]} Bf8 {[%clk 00:05:48]} {[%emt 00:01:08]} 26. Kh2 {[%clk
00:07:02]} {[%emt 00:00:35]} Ne7 {[%clk 00:05:11]} {[%emt 00:00:42]} 27. Ba5
{[%clk 00:06:47]} {[%emt 00:00:20]} Rd5 {[%clk 00:04:54]} {[%emt 00:00:21]} 28.
Bxc7 {[%clk 00:06:48]} {[%emt 00:00:04]} Qxc7 {[%clk 00:04:57]} {[%emt
00:00:03]} 29. f4 {[%clk 00:06:52]} {[%emt 00:00:01]} Nf5 {[%clk 00:04:04]}
{[%emt 00:00:59]} 30. Ng3 {[%clk 00:06:49]} {[%emt 00:00:07]} Ne3 {[%clk
00:03:42]} {[%emt 00:00:27]} 31. Qf3 {[%clk 00:06:45]} {[%emt 00:00:09]} Nxc2
{[%clk 00:03:02]} {[%emt 00:00:45]} 32. Qe4 {[%clk 00:06:42]} {[%emt 00:00:08]}
g6 {[%clk 00:02:53]} {[%emt 00:00:14]} 33. Bxc2 {[%clk 00:06:44]} {[%emt
00:00:03]} Ng7 {[%clk 00:02:47]} {[%emt 00:00:10]} 34. Bd3 {[%clk 00:06:47]}
{[%emt 00:00:02]} Qa5 {[%clk 00:02:23]} {[%emt 00:00:29]} 35. Rac1 {[%clk
00:06:44]} {[%emt 00:00:09]} b4 {[%clk 00:02:12]} {[%emt 00:00:16]} 36. Rc8
{[%clk 00:06:39]} {[%emt 00:00:10]} Rd8 {[%clk 00:02:16]} {[%emt 00:00:01]} 37.
Rxd8 {[%clk 00:06:36]} {[%emt 00:00:07]} Qxd8 {[%clk 00:02:20]} {[%emt
00:00:02]} 38. a4 {[%clk 00:06:31]} {[%emt 00:00:10]} a5 {[%clk 00:02:08]}
{[%emt 00:00:16]} 39. h6 {[%clk 00:06:23]} {[%emt 00:00:13]} Ne8 {[%clk
00:02:02]} {[%emt 00:00:12]} 40. Kg2 {[%clk 00:06:10]} {[%emt 00:00:18]} Nc7
{[%clk 00:01:57]} {[%emt 00:00:10]} 41. Bc4 {[%clk 00:06:05]} {[%emt 00:00:10]}
Na8 {[%clk 00:01:28]} {[%emt 00:00:34]} 42. Qb7 {[%clk 00:05:41]} {[%emt
00:00:28]} Kg8 {[%clk 00:01:23]} {[%emt 00:00:11]} 43. Ne4 {[%clk 00:05:30]}
{[%emt 00:00:16]} Be7 {[%clk 00:01:20]} {[%emt 00:00:08]} 44. Nd6 {[%clk
00:04:54]} {[%emt 00:00:41]} Nb6 {[%clk 00:01:02]} {[%emt 00:00:22]} 45. Bd3
{[%clk 00:04:44]} {[%emt 00:00:15]} Bxd6 {[%clk 00:00:52]} {[%emt 00:00:16]} 46.
exd6 {[%clk 00:04:48]} {[%emt 00:00:01]} Qxd6 {[%clk 00:00:56]} {[%emt
00:00:02]} 47. Qe4 {[%clk 00:04:39]} {[%emt 00:00:12]} Nd5 {[%clk 00:00:55]}
{[%emt 00:00:07]} 48. Kg3 {[%clk 00:04:35]} {[%emt 00:00:09]} Kf8 {[%clk
00:00:25]} {[%emt 00:00:34]} 49. Rc1 {[%clk 00:04:32]} {[%emt 00:00:08]} Nb6
{[%clk 00:00:15]} {[%emt 00:00:16]} 50. b3 {[%clk 00:04:29]} {[%emt 00:00:08]}
Nd5 {[%clk 00:00:10]} {[%emt 00:00:10]} 51. Qxd4 {[%clk 00:04:27]} {[%emt
00:00:07]} Ke7 {[%clk 00:00:08]} {[%emt 00:00:07]} 52. Bc4 {[%clk 00:03:59]}
{[%emt 00:00:33]} 1-0

[Event "Rapid Tournament (RAP)"]
[Site "Biel, Switzerland"]
[Date "2026.07.12"]
[Round "4.15"]
[White "Ivarsson, Anders"]
[Black "Filipovic, Branko"]
[Result "0-1"]
[TimeControl "15 + 5"]
[WhiteTitle "-"]
[BlackTitle "-"]
[WhiteFideId "1768158"]
[BlackFideId "14507951"]
[WhiteElo "1907"]
[BlackElo "2279"]

1. Nf3 {[%clk 00:15:05]} {[%emt 00:46:55]} Nf6 2. c4 {[%emt 00:00:02]} b6
{[%clk 00:15:05]} {[%emt 00:00:02]} 3. g3 {[%clk 00:15:05]} {[%emt 00:00:03]}
Bb7 4. Bg2 {[%emt 00:00:02]} g6 {[%clk 00:15:05]} {[%emt 00:00:03]} 5. O-O
{[%clk 00:15:05]} {[%emt 00:00:03]} Bg7 {[%clk 00:15:05]} 6. Nc3 {[%clk
00:15:05]} {[%emt 00:00:05]} O-O {[%clk 00:15:05]} {[%emt 00:00:03]} 7. d4
{[%clk 00:15:05]} {[%emt 00:00:03]} Ne4 {[%clk 00:15:05]} {[%emt 00:00:04]} 8.
Qc2 {[%clk 00:15:05]} {[%emt 00:00:13]} Nxc3 {[%clk 00:15:05]} {[%emt
00:00:04]} 9. bxc3 {[%clk 00:15:05]} {[%emt 00:00:03]} Nc6 {[%clk 00:15:05]}
{[%emt 00:00:05]} 10. Nd2 {[%clk 00:14:37]} {[%emt 00:01:11]} Na5 {[%clk
00:15:05]} {[%emt 00:00:06]} 11. Bxb7 {[%clk 00:14:23]} {[%emt 00:00:19]} Nxb7
{[%clk 00:15:08]} {[%emt 00:00:02]} 12. e4 {[%clk 00:14:18]} {[%emt 00:00:10]}
d6 {[%clk 00:15:07]} {[%emt 00:00:06]} 13. f4 {[%clk 00:14:02]} {[%emt
00:00:21]} e6 {[%clk 00:14:07]} {[%emt 00:01:05]} 14. Nf3 {[%clk 00:14:02]}
{[%emt 00:00:04]} Qd7 {[%clk 00:14:00]} {[%emt 00:00:12]} 15. Be3 {[%clk
00:13:45]} {[%emt 00:00:23]} Na5 {[%clk 00:12:42]} {[%emt 00:01:23]} 16. Qd3
{[%clk 00:12:55]} {[%emt 00:00:54]} Qa4 {[%clk 00:12:22]} {[%emt 00:00:25]} 17.
Nd2 {[%clk 00:12:49]} {[%emt 00:00:11]} Rad8 {[%clk 00:11:56]} {[%emt
00:00:31]} 18. f5 {[%clk 00:12:17]} {[%emt 00:00:37]} exf5 {[%clk 00:11:28]}
{[%emt 00:00:33]} 19. exf5 {[%clk 00:12:20]} {[%emt 00:00:02]} Rfe8 {[%clk
00:11:25]} {[%emt 00:00:09]} 20. f6 {[%clk 00:12:07]} {[%emt 00:00:17]} Bf8
{[%clk 00:11:24]} {[%emt 00:00:06]} 21. g4 {[%clk 00:10:41]} {[%emt 00:01:31]}
d5 {[%clk 00:10:52]} {[%emt 00:00:37]} 22. cxd5 {[%clk 00:10:11]} {[%emt
00:00:35]} Rxd5 {[%emt 00:00:13]} 23. Rf3 {[%clk 00:10:05]} Qd7 {[%clk
00:10:21]} {[%emt 00:00:38]} 24. g5 {[%clk 00:09:23]} {[%emt 00:00:47]} b5
{[%clk 00:08:07]} {[%emt 00:02:19]} 25. Raf1 {[%clk 00:08:19]} {[%emt
00:01:09]} c5 {[%clk 00:07:52]} {[%emt 00:00:20]} 26. R1f2 {[%clk 00:07:24]}
{[%emt 00:01:00]} cxd4 {[%clk 00:07:45]} {[%emt 00:00:12]} 27. cxd4 {[%clk
00:07:07]} {[%emt 00:00:22]} Nc6 {[%clk 00:07:43]} {[%emt 00:00:07]} 28. Rg3
{[%clk 00:05:35]} {[%emt 00:01:37]} Nxd4 {[%clk 00:07:21]} {[%emt 00:00:27]} 29.
Bxd4 {[%clk 00:04:09]} {[%emt 00:01:30]} Rxd4 {[%clk 00:07:24]} {[%emt
00:00:03]} 30. Qc3 {[%clk 00:03:45]} {[%emt 00:00:29]} Bb4 {[%clk 00:06:56]}
{[%emt 00:00:32]} 31. Qb3 {[%clk 00:02:20]} {[%emt 00:01:31]} Bxd2 {[%clk
00:06:27]} {[%emt 00:00:34]} 32. Rh3 {[%clk 00:01:53]} {[%emt 00:00:32]} Rg4+
{[%clk 00:05:36]} {[%emt 00:00:56]} 33. Rg3 {[%clk 00:01:38]} {[%emt 00:00:20]}
Rxg3+ {[%clk 00:05:26]} {[%emt 00:00:15]} 34. hxg3 {[%clk 00:01:32]} {[%emt
00:00:11]} Be3 {[%clk 00:05:29]} {[%emt 00:00:03]} 35. Kg2 {[%clk 00:01:15]}
{[%emt 00:00:21]} Bxf2 {[%clk 00:05:32]} {[%emt 00:00:02]} 36. Kxf2 {[%clk
00:01:19]} {[%emt 00:00:02]} Qf5+ {[%clk 00:05:17]} {[%emt 00:00:19]} 0-1

[Event "Rapid Tournament (RAP)"]
[Site "Biel, Switzerland"]
[Date "2026.07.12"]
[Round "4.16"]
[White "Tureshbayev, Anuar"]
[Black "Materia, Mario"]
[Result "1-0"]
[TimeControl "15 + 5"]
[WhiteTitle "-"]
[BlackTitle "-"]
[WhiteFideId "651081709"]
[BlackFideId "651082241"]
[WhiteElo "2246"]
[BlackElo "1914"]

1. e4 {[%clk 00:15:08]} {[%emt 00:00:04]} e5 {[%clk 00:15:07]} {[%emt
00:00:01]} 2. Nf3 {[%clk 00:15:04]} {[%emt 00:00:09]} Nc6 {[%clk 00:15:09]}
{[%emt 00:00:05]} 3. d4 {[%clk 00:15:05]} {[%emt 00:00:04]} exd4 {[%clk
00:15:11]} {[%emt 00:00:03]} 4. Nxd4 {[%clk 00:15:09]} Nf6 {[%clk 00:15:10]}
{[%emt 00:00:05]} 5. Nxc6 {[%clk 00:15:09]} {[%emt 00:00:05]} bxc6 {[%clk
00:15:11]} {[%emt 00:00:05]} 6. Bd3 {[%clk 00:15:13]} {[%emt 00:00:02]} Bc5
{[%clk 00:14:20]} {[%emt 00:00:55]} 7. e5 {[%clk 00:15:15]} {[%emt 00:00:03]}
Qe7 {[%clk 00:14:17]} {[%emt 00:00:08]} 8. O-O {[%clk 00:15:19]} {[%emt
00:00:01]} Nd5 {[%clk 00:14:10]} {[%emt 00:00:12]} 9. a3 {[%clk 00:15:11]}
{[%emt 00:00:13]} a5 {[%clk 00:14:11]} {[%emt 00:00:04]} 10. c4 {[%clk
00:15:13]} {[%emt 00:00:03]} Nb6 {[%clk 00:14:09]} {[%emt 00:00:07]} 11. Nc3
{[%clk 00:14:16]} {[%emt 00:01:02]} O-O {[%clk 00:14:02]} {[%emt 00:00:11]} 12.
Bf4 {[%clk 00:13:08]} {[%emt 00:01:13]} d5 {[%clk 00:13:32]} {[%emt 00:00:36]}
13. cxd5 {[%clk 00:11:57]} {[%emt 00:01:17]} cxd5 {[%clk 00:13:08]} {[%emt
00:00:27]} 14. Qh5 {[%clk 00:11:51]} {[%emt 00:00:12]} g6 {[%clk 00:12:53]}
{[%emt 00:00:19]} 15. Qf3 {[%clk 00:11:49]} {[%emt 00:00:06]} c6 {[%clk
00:12:45]} {[%emt 00:00:15]} 16. Rac1 {[%clk 00:11:52]} {[%emt 00:00:02]} Ba6
{[%clk 00:12:36]} {[%emt 00:00:14]} 17. Bxa6 {[%clk 00:11:18]} {[%emt
00:00:38]} Rxa6 {[%clk 00:12:39]} {[%emt 00:00:03]} 18. Rfe1 {[%clk 00:10:11]}
{[%emt 00:01:12]} Nd7 {[%clk 00:09:41]} {[%emt 00:03:03]} 19. Na4 {[%clk
00:08:50]} {[%emt 00:01:26]} Rc8 {[%clk 00:09:00]} {[%emt 00:00:46]} 20. Qg4
{[%clk 00:08:12]} {[%emt 00:00:43]} Re8 {[%clk 00:07:54]} {[%emt 00:01:11]} 21.
Bg5 {[%clk 00:07:19]} {[%emt 00:00:56]} f6 {[%clk 00:06:57]} {[%emt 00:01:03]}
22. Nxc5 {[%clk 00:07:16]} {[%emt 00:00:09]} Nxe5 {[%clk 00:05:32]} {[%emt
00:01:30]} 23. Nxa6 {[%clk 00:06:53]} {[%emt 00:00:28]} fxg5 {[%clk 00:05:11]}
{[%emt 00:00:26]} 24. Qe2 {[%clk 00:06:12]} {[%emt 00:00:45]} Nf3+ {[%clk
00:05:04]} {[%emt 00:00:12]} 25. gxf3 {[%clk 00:06:15]} {[%emt 00:00:02]} Qxe2
{[%clk 00:05:05]} {[%emt 00:00:05]} 26. Rxe2 {[%clk 00:06:18]} {[%emt
00:00:02]} Rxe2 {[%clk 00:05:08]} {[%emt 00:00:01]} 27. b4 {[%clk 00:06:23]}
axb4 {[%clk 00:05:04]} {[%emt 00:00:11]} 28. axb4 {[%clk 00:06:27]} d4 {[%clk
00:05:08]} {[%emt 00:00:02]} 29. Rd1 {[%clk 00:06:25]} {[%emt 00:00:06]} Ra2
{[%clk 00:05:04]} {[%emt 00:00:09]} 30. Nb8 {[%clk 00:06:26]} {[%emt 00:00:03]}
Rb2 {[%clk 00:04:57]} {[%emt 00:00:13]} 31. Nxc6 {[%clk 00:06:28]} {[%emt
00:00:03]} Rc2 {[%clk 00:04:57]} {[%emt 00:00:05]} 32. Nxd4 {[%clk 00:06:31]}
{[%emt 00:00:02]} Rc4 {[%clk 00:05:00]} {[%emt 00:00:01]} 33. b5 {[%clk
00:06:34]} {[%emt 00:00:03]} Rb4 {[%clk 00:05:03]} {[%emt 00:00:02]} 34. Kf1
{[%clk 00:06:31]} {[%emt 00:00:07]} Kf7 {[%clk 00:05:06]} {[%emt 00:00:03]} 35.
Ke2 {[%clk 00:06:33]} {[%emt 00:00:02]} Rb2+ {[%clk 00:05:09]} {[%emt
00:00:02]} 36. Rd2 {[%clk 00:06:37]} {[%emt 00:00:02]} Rb1 {[%clk 00:05:13]}
{[%emt 00:00:01]} 37. Kd3 {[%clk 00:06:39]} {[%emt 00:00:02]} Ke7 {[%clk
00:05:16]} {[%emt 00:00:02]} 38. Kc4 {[%clk 00:06:43]} {[%emt 00:00:02]} Kd6
{[%clk 00:05:17]} {[%emt 00:00:03]} 39. Nb3+ {[%clk 00:06:44]} {[%emt
00:00:04]} Kc7 {[%clk 00:05:21]} {[%emt 00:00:02]} 40. Re2 {[%clk 00:06:42]}
{[%emt 00:00:08]} Rh1 {[%clk 00:05:16]} {[%emt 00:00:08]} 41. Kc5 {[%clk
00:06:45]} {[%emt 00:00:03]} Rxh2 {[%clk 00:05:16]} {[%emt 00:00:05]} 42. b6+
{[%clk 00:06:48]} {[%emt 00:00:02]} Kb7 {[%clk 00:05:20]} 43. Re7+ {[%clk
00:06:52]} Kb8 {[%clk 00:05:24]} {[%emt 00:00:01]} 44. Re8+ {[%clk 00:06:53]}
{[%emt 00:00:04]} Kb7 {[%clk 00:05:28]} 45. Na5+ {[%clk 00:06:57]} Ka6 {[%clk
00:05:32]} {[%emt 00:00:01]} 46. Ra8# {[%clk 00:06:54]} {[%emt 00:00:01]} 1-0